[Event "Titled Tuesday Blitz March 21 Late 2023"]
[White "Bullen, Alex"]
[Black "Przybylski, Wojciech"]
[WhiteFideId "1801627"]
[BlackFideId "1117599"]
[WhiteElo "2088"]
[BlackElo "2222"]
[Result "0-1"]
[Round "11"]
[TimeControl "180+2"]
[Date "2023.03.21"]
[WhiteClock "0:00:02"]
[BlackClock "0:01:31"]

1. d4 {[%clk 0:03:00]}  d5 {[%clk 0:02:51]} 2. Nf3 {[%clk 0:03:00]}  Nf6 {[%clk 0:02:51]} 3. c4 {[%clk 0:03:00]}  dxc4 {[%clk 0:02:51]} 4. Qa4+ {[%clk 0:03:00]}  c6 {[%clk 0:02:48]} 5. Qxc4 {[%clk 0:03:00]}  Bf5 {[%clk 0:02:49]} 6. g3 {[%clk 0:03:00]}  Nbd7 {[%clk 0:02:48]} 7. Bg2 {[%clk 0:03:00]}  e6 {[%clk 0:02:48]} 8. O-O {[%clk 0:03:00]}  Be7 {[%clk 0:02:48]} 9. Nc3 {[%clk 0:02:55]}  O-O {[%clk 0:02:48]} 10. e3 {[%clk 0:02:55]}  Ne4 {[%clk 0:02:47]} 11. Nxe4 {[%clk 0:02:53]}  Bxe4 {[%clk 0:02:46]} 12. Bd2 {[%clk 0:02:49]}  c5 {[%clk 0:02:42]} 13. Qe2 {[%clk 0:02:44]}  cxd4 {[%clk 0:02:26]} 14. Nxd4 {[%clk 0:02:43]}  Bxg2 {[%clk 0:02:25]} 15. Kxg2 {[%clk 0:02:44]}  Nc5 {[%clk 0:02:22]} 16. Bc3 {[%clk 0:02:41]}  e5 {[%clk 0:02:21]} 17. Nf5 {[%clk 0:02:37]}  Bf6 {[%clk 0:02:21]} 18. Rfd1 {[%clk 0:02:32]}  Qc7 {[%clk 0:02:19]} 19. Rac1 {[%clk 0:02:20]}  Qc6+ {[%clk 0:02:19]} 20. Kg1 {[%clk 0:02:18]}  Qe6 {[%clk 0:02:15]} 21. e4 {[%clk 0:01:59]}  Rfd8 {[%clk 0:02:11]} 22. Rxd8+ {[%clk 0:01:51]}  Rxd8 {[%clk 0:02:10]} 23. Bb4 {[%clk 0:01:21]}  Nd3 {[%clk 0:02:07]} 24. Rd1 {[%clk 0:00:12]}  Nxb4 {[%clk 0:02:05]} 25. Rxd8+ {[%clk 0:00:12]}  Bxd8 {[%clk 0:02:04]} 26. Qb5 {[%clk 0:00:11]}  Nc6 {[%clk 0:01:51]} 27. Qxb7 {[%clk 0:00:11]}  g6 {[%clk 0:01:50]} 28. Nh6+ {[%clk 0:00:10]}  Kg7 {[%clk 0:01:48]} 29. Ng4 {[%clk 0:00:07]}  Qxg4 {[%clk 0:01:44]} 30. Qxc6 {[%clk 0:00:07]}  Qd1+ {[%clk 0:01:42]} 31. Kg2 {[%clk 0:00:07]}  Qd4 {[%clk 0:01:38]} 32. Qe8 {[%clk 0:00:06]}  Bb6 {[%clk 0:01:37]} 33. f3 {[%clk 0:00:05]}  h5 {[%clk 0:01:34]} 34. Kh3 {[%clk 0:00:02]}  Qxb2 {[%clk 0:01:33]} 35. Qe7 {[%clk 0:00:02]}  Bg1 {[%clk 0:01:31]} 0-1


[Site "https://www.chess.com"]

[Event "Titled Tuesday Blitz March 21 Late 2023"]
[White "Romero Ruscalleda, Josep"]
[Black "Gatterer, Florian"]
[WhiteFideId "2231859"]
[BlackFideId "811688"]
[WhiteElo "2183"]
[BlackElo "2221"]
[Result "1/2-1/2"]
[Round "11"]
[TimeControl "180+2"]
[Date "2023.03.21"]
[WhiteClock "0:02:16"]
[BlackClock "0:02:11"]

1. e4 {[%clk 0:02:57]}  c5 {[%clk 0:03:00]} 2. c3 {[%clk 0:02:57]}  Nf6 {[%clk 0:02:59]} 3. e5 {[%clk 0:02:57]}  Nd5 {[%clk 0:02:59]} 4. Nf3 {[%clk 0:02:57]}  Nc6 {[%clk 0:02:58]} 5. Bc4 {[%clk 0:02:56]}  Nb6 {[%clk 0:02:58]} 6. Bb3 {[%clk 0:02:56]}  c4 {[%clk 0:02:58]} 7. Bc2 {[%clk 0:02:56]}  d5 {[%clk 0:02:59]} 8. exd6 {[%clk 0:02:55]}  Qxd6 {[%clk 0:02:59]} 9. O-O {[%clk 0:02:56]}  Bg4 {[%clk 0:02:58]} 10. Re1 {[%clk 0:02:55]}  e6 {[%clk 0:02:58]} 11. Qe2 {[%clk 0:02:55]}  Be7 {[%clk 0:02:54]} 12. Na3 {[%clk 0:02:54]}  Bxf3 {[%clk 0:02:50]} 13. Qxf3 {[%clk 0:02:53]}  O-O {[%clk 0:02:48]} 14. Nxc4 {[%clk 0:02:43]}  Nxc4 {[%clk 0:02:46]} 15. Qe4 {[%clk 0:02:43]}  g6 {[%clk 0:02:33]} 16. Qxc4 {[%clk 0:02:43]}  e5 {[%clk 0:02:24]} 17. d3 {[%clk 0:02:17]}  Rac8 {[%clk 0:02:21]} 18. Bh6 {[%clk 0:02:16]}  Nd4 {[%clk 0:02:11]} 1/2-1/2


[Site "https://www.chess.com"]

[Event "Titled Tuesday Blitz March 21 Late 2023"]
[White "Gerbelli Neto, Eduardo"]
[Black "TigranHH"]
[WhiteFideId "2103281"]
[WhiteElo "2178"]
[BlackElo "2314"]
[Result "1-0"]
[Round "11"]
[TimeControl "180+2"]
[Date "2023.03.21"]
[WhiteClock "0:00:13"]
[BlackClock "0:00:15"]

1. e4 {[%clk 0:03:00]}  c6 {[%clk 0:03:00]} 2. d4 {[%clk 0:03:00]}  d5 {[%clk 0:03:01]} 3. exd5 {[%clk 0:03:01]}  cxd5 {[%clk 0:03:02]} 4. c4 {[%clk 0:03:01]}  Nf6 {[%clk 0:03:02]} 5. Nc3 {[%clk 0:03:02]}  g6 {[%clk 0:03:02]} 6. cxd5 {[%clk 0:03:00]}  Bg7 {[%clk 0:03:02]} 7. Qb3 {[%clk 0:03:01]}  O-O {[%clk 0:03:03]} 8. Be2 {[%clk 0:03:01]}  Na6 {[%clk 0:02:57]} 9. Bf3 {[%clk 0:02:58]}  b5 {[%clk 0:02:57]} 10. Qxb5 {[%clk 0:02:26]}  Nc7 {[%clk 0:02:52]} 11. Qa5 {[%clk 0:02:26]}  Ncxd5 {[%clk 0:02:37]} 12. Qxd8 {[%clk 0:02:26]}  Rxd8 {[%clk 0:02:38]} 13. Nge2 {[%clk 0:02:25]}  Ba6 {[%clk 0:02:32]} 14. Bg5 {[%clk 0:02:25]}  Rab8 {[%clk 0:02:20]} 15. O-O-O {[%clk 0:02:11]}  Rdc8 {[%clk 0:01:58]} 16. Bxf6 {[%clk 0:01:54]}  Nxf6 {[%clk 0:01:55]} 17. Rhe1 {[%clk 0:01:38]}  e6 {[%clk 0:01:51]} 18. Nf4 {[%clk 0:01:38]}  Rb4 {[%clk 0:01:43]} 19. a3 {[%clk 0:01:32]}  Rb6 {[%clk 0:01:31]} 20. Nd3 {[%clk 0:01:26]}  Bh6+ {[%clk 0:01:23]} 21. Kc2 {[%clk 0:01:23]}  Bc4 {[%clk 0:01:14]} 22. Nc5 {[%clk 0:01:12]}  a5 {[%clk 0:01:11]} 23. Be2 {[%clk 0:00:35]}  Bxe2 {[%clk 0:01:02]} 24. Rxe2 {[%clk 0:00:36]}  Rcb8 {[%clk 0:01:01]} 25. b3 {[%clk 0:00:32]}  Rd8 {[%clk 0:00:54]} 26. a4 {[%clk 0:00:30]}  Rb4 {[%clk 0:00:54]} 27. Nb5 {[%clk 0:00:30]}  Nd7 {[%clk 0:00:47]} 28. Na6 {[%clk 0:00:30]}  Rc8+ {[%clk 0:00:44]} 29. Kb2 {[%clk 0:00:28]}  Bg7 {[%clk 0:00:39]} 30. Nxb4 {[%clk 0:00:27]}  axb4 {[%clk 0:00:40]} 31. Rc2 {[%clk 0:00:27]}  Rd8 {[%clk 0:00:40]} 32. Rc7 {[%clk 0:00:26]}  Nb6 {[%clk 0:00:38]} 33. a5 {[%clk 0:00:25]}  Nd5 {[%clk 0:00:38]} 34. Rc4 {[%clk 0:00:24]}  Ra8 {[%clk 0:00:37]} 35. Ra1 {[%clk 0:00:21]}  e5 {[%clk 0:00:31]} 36. Ra4 {[%clk 0:00:20]}  exd4 {[%clk 0:00:30]} 37. Nxd4 {[%clk 0:00:21]}  Re8 {[%clk 0:00:25]} 38. Kc2 {[%clk 0:00:20]}  Re4 {[%clk 0:00:19]} 39. a6 {[%clk 0:00:17]}  Nb6 {[%clk 0:00:18]} 40. a7 {[%clk 0:00:16]}  Re8 {[%clk 0:00:18]} 41. Ra6 {[%clk 0:00:14]}  Nxc4 {[%clk 0:00:18]} 42. a8=Q {[%clk 0:00:14]}  Na3+ {[%clk 0:00:15]} 43. Rxa3 {[%clk 0:00:13]} 1-0


[Site "https://www.chess.com"]

[Event "Titled Tuesday Blitz March 21 Late 2023"]
[White "Smith, Garrett L"]
[Black "Khatena, Moshe"]
[WhiteFideId "2024829"]
[BlackFideId "2010461"]
[WhiteElo "2295"]
[BlackElo "2226"]
[Result "0-1"]
[Round "11"]
[TimeControl "180+2"]
[Date "2023.03.21"]
[WhiteClock "0:00:47"]
[BlackClock "0:01:19"]

1. e4 {[%clk 0:03:00]}  Nf6 {[%clk 0:03:00]} 2. e5 {[%clk 0:03:00]}  Nd5 {[%clk 0:03:00]} 3. d4 {[%clk 0:03:01]}  d6 {[%clk 0:02:59]} 4. Nf3 {[%clk 0:03:02]}  g6 {[%clk 0:02:59]} 5. Be2 {[%clk 0:03:00]}  Bg7 {[%clk 0:02:58]} 6. O-O {[%clk 0:03:00]}  O-O {[%clk 0:02:58]} 7. Re1 {[%clk 0:02:55]}  Nc6 {[%clk 0:02:57]} 8. c4 {[%clk 0:02:54]}  Nb6 {[%clk 0:02:57]} 9. exd6 {[%clk 0:02:51]}  cxd6 {[%clk 0:02:58]} 10. Nc3 {[%clk 0:02:46]}  Bg4 {[%clk 0:02:58]} 11. d5 {[%clk 0:02:39]}  Bxf3 {[%clk 0:02:56]} 12. Bxf3 {[%clk 0:02:33]}  Na5 {[%clk 0:02:53]} 13. Qe2 {[%clk 0:02:25]}  Re8 {[%clk 0:02:52]} 14. Bg5 {[%clk 0:02:11]}  Naxc4 {[%clk 0:02:49]} 15. Rac1 {[%clk 0:01:54]}  Ne5 {[%clk 0:02:46]} 16. Be4 {[%clk 0:01:52]}  h6 {[%clk 0:02:43]} 17. Bh4 {[%clk 0:01:51]}  Rc8 {[%clk 0:02:10]} 18. f3 {[%clk 0:01:44]}  Ned7 {[%clk 0:01:57]} 19. Bf2 {[%clk 0:01:29]}  Nf6 {[%clk 0:01:53]} 20. Nb5 {[%clk 0:01:21]}  Nbxd5 {[%clk 0:01:43]} 21. Nxa7 {[%clk 0:01:09]}  Ra8 {[%clk 0:01:34]} 22. Qb5 {[%clk 0:01:09]}  Nxe4 {[%clk 0:01:25]} 23. Qxd5 {[%clk 0:01:01]}  Nxf2 {[%clk 0:01:24]} 24. Nb5 {[%clk 0:00:47]}  Qb6 {[%clk 0:01:19]} 0-1


[Site "https://www.chess.com"]

[Event "Titled Tuesday Blitz March 21 Late 2023"]
[White "Albuquerque Junior,Wellington S."]
[Black "Hartikainen, Jarmo"]
[WhiteFideId "2151480"]
[BlackFideId "503134"]
[WhiteElo "2109"]
[BlackElo "2184"]
[Result "1/2-1/2"]
[Round "11"]
[TimeControl "180+2"]
[Date "2023.03.21"]
[WhiteClock "0:00:37"]
[BlackClock "0:00:33"]

1. c4 {[%clk 0:03:00]}  Nf6 {[%clk 0:02:58]} 2. g3 {[%clk 0:02:59]}  g6 {[%clk 0:02:58]} 3. Bg2 {[%clk 0:03:00]}  Bg7 {[%clk 0:02:58]} 4. Nc3 {[%clk 0:03:00]}  c5 {[%clk 0:02:57]} 5. e4 {[%clk 0:03:01]}  Nc6 {[%clk 0:02:55]} 6. d3 {[%clk 0:02:59]}  O-O {[%clk 0:02:54]} 7. Nge2 {[%clk 0:03:00]}  d6 {[%clk 0:02:29]} 8. O-O {[%clk 0:02:51]}  Bd7 {[%clk 0:02:23]} 9. h3 {[%clk 0:02:51]}  Qc8 {[%clk 0:02:22]} 10. Kh2 {[%clk 0:02:51]}  h6 {[%clk 0:02:20]} 11. Be3 {[%clk 0:02:51]}  Rb8 {[%clk 0:02:17]} 12. Rc1 {[%clk 0:02:46]}  a6 {[%clk 0:02:16]} 13. d4 {[%clk 0:02:47]}  cxd4 {[%clk 0:02:11]} 14. Nxd4 {[%clk 0:02:48]}  Nxd4 {[%clk 0:02:06]} 15. Bxd4 {[%clk 0:02:48]}  e5 {[%clk 0:01:30]} 16. Be3 {[%clk 0:02:40]}  Qxc4 {[%clk 0:01:29]} 17. Nd5 {[%clk 0:02:39]}  Qxa2 {[%clk 0:01:23]} 18. Nxf6+ {[%clk 0:02:20]}  Bxf6 {[%clk 0:01:23]} 19. Bxh6 {[%clk 0:02:06]}  Rfd8 {[%clk 0:01:16]} 20. Qxd6 {[%clk 0:02:04]}  Qe6 {[%clk 0:01:14]} 21. Qb4 {[%clk 0:01:50]}  Be7 {[%clk 0:01:07]} 22. Qd2 {[%clk 0:01:37]}  Bb5 {[%clk 0:01:02]} 23. Qe3 {[%clk 0:01:34]}  Bxf1 {[%clk 0:01:01]} 24. Bxf1 {[%clk 0:01:35]}  Bf8 {[%clk 0:00:54]} 25. Bxf8 {[%clk 0:01:31]}  Kxf8 {[%clk 0:00:54]} 26. Bc4 {[%clk 0:01:31]}  Qe7 {[%clk 0:00:49]} 27. Qh6+ {[%clk 0:01:29]}  Kg8 {[%clk 0:00:49]} 28. Qxg6+ {[%clk 0:01:29]}  Kf8 {[%clk 0:00:49]} 29. Qh6+ {[%clk 0:01:24]}  Kg8 {[%clk 0:00:47]} 30. Bd5 {[%clk 0:01:13]}  Rd6 {[%clk 0:00:43]} 31. Bxf7+ {[%clk 0:00:47]}  Qxf7 {[%clk 0:00:39]} 32. Qxd6 {[%clk 0:00:46]}  Qxf2+ {[%clk 0:00:39]} 33. Kh1 {[%clk 0:00:46]}  Qf3+ {[%clk 0:00:38]} 34. Kh2 {[%clk 0:00:45]}  Qf2+ {[%clk 0:00:37]} 35. Kh1 {[%clk 0:00:46]}  Qf3+ {[%clk 0:00:33]} 36. Kh2 {[%clk 0:00:37]}  Qf2+ {[%clk 0:00:33]} 1/2-1/2


[Site "https://www.chess.com"]

[Event "Titled Tuesday Blitz March 21 Late 2023"]
[White "salgadoLO"]
[Black "Kostiukov, Alexandr"]
[BlackFideId "14108100"]
[WhiteElo "2197"]
[BlackElo "2202"]
[Result "1-0"]
[Round "11"]
[TimeControl "180+2"]
[Date "2023.03.21"]
[WhiteClock "0:00:14"]
[BlackClock "0:00:02"]

1. d4 {[%clk 0:03:00]}  g6 {[%clk 0:03:00]} 2. e4 {[%clk 0:03:00]}  Bg7 {[%clk 0:03:00]} 3. Nc3 {[%clk 0:02:58]}  d6 {[%clk 0:03:00]} 4. f4 {[%clk 0:02:59]}  e5 {[%clk 0:03:01]} 5. dxe5 {[%clk 0:02:56]}  dxe5 {[%clk 0:03:01]} 6. Qxd8+ {[%clk 0:02:56]}  Kxd8 {[%clk 0:03:02]} 7. Nf3 {[%clk 0:02:51]}  Nc6 {[%clk 0:02:51]} 8. fxe5 {[%clk 0:02:47]}  Nxe5 {[%clk 0:02:50]} 9. Bg5+ {[%clk 0:02:45]}  Ke8 {[%clk 0:02:14]} 10. O-O-O {[%clk 0:02:40]}  Bg4 {[%clk 0:01:54]} 11. Be2 {[%clk 0:02:26]}  Nxf3 {[%clk 0:01:50]} 12. gxf3 {[%clk 0:02:24]}  Bxc3 {[%clk 0:01:43]} 13. bxc3 {[%clk 0:02:20]}  Be6 {[%clk 0:01:40]} 14. Kb2 {[%clk 0:02:15]}  f6 {[%clk 0:01:31]} 15. Bf4 {[%clk 0:02:14]}  Rc8 {[%clk 0:01:27]} 16. Be3 {[%clk 0:02:11]}  b6 {[%clk 0:01:25]} 17. Bb5+ {[%clk 0:02:05]}  Ke7 {[%clk 0:01:25]} 18. Bf4 {[%clk 0:01:57]}  g5 {[%clk 0:01:03]} 19. Bg3 {[%clk 0:01:54]}  a5 {[%clk 0:00:47]} 20. Rd4 {[%clk 0:01:34]}  Nh6 {[%clk 0:00:36]} 21. h4 {[%clk 0:01:31]}  g4 {[%clk 0:00:36]} 22. f4 {[%clk 0:01:28]}  f5 {[%clk 0:00:21]} 23. e5 {[%clk 0:01:21]}  Rhd8 {[%clk 0:00:18]} 24. h5 {[%clk 0:01:16]}  Nf7 {[%clk 0:00:13]} 25. Bh4+ {[%clk 0:01:15]}  Kf8 {[%clk 0:00:09]} 26. Bxd8 {[%clk 0:01:11]}  Nxd8 {[%clk 0:00:10]} 27. Bd7 {[%clk 0:01:00]}  Rb8 {[%clk 0:00:11]} 28. Bxe6 {[%clk 0:00:54]}  Nxe6 {[%clk 0:00:12]} 29. Rd7 {[%clk 0:00:53]}  b5 {[%clk 0:00:07]} 30. Rxh7 {[%clk 0:00:50]}  Kg8 {[%clk 0:00:08]} 31. Re7 {[%clk 0:00:49]}  Nxf4 {[%clk 0:00:08]} 32. Rf1 {[%clk 0:00:48]}  Nd5 {[%clk 0:00:08]} 33. Rd7 {[%clk 0:00:46]}  Ne3 {[%clk 0:00:07]} 34. Re1 {[%clk 0:00:42]}  f4 {[%clk 0:00:06]} 35. h6 {[%clk 0:00:39]}  b4 {[%clk 0:00:06]} 36. Rg7+ {[%clk 0:00:28]}  Kh8 {[%clk 0:00:06]} 37. c4 {[%clk 0:00:20]}  Nxc4+ {[%clk 0:00:06]} 38. Kb3 {[%clk 0:00:21]}  Ne3 {[%clk 0:00:06]} 39. Ka4 {[%clk 0:00:18]}  c5 {[%clk 0:00:06]} 40. Kxa5 {[%clk 0:00:15]}  g3 {[%clk 0:00:04]} 41. e6 {[%clk 0:00:15]}  Re8 {[%clk 0:00:04]} 42. e7 {[%clk 0:00:14]}  Nf5 {[%clk 0:00:03]} 43. Rf7 {[%clk 0:00:14]}  Nxh6 {[%clk 0:00:02]} 44. Rf8+ {[%clk 0:00:14]} 1-0


[Site "https://www.chess.com"]

[Event "Titled Tuesday Blitz March 21 Late 2023"]
[White "Picard, Romain"]
[Black "rionelG"]
[WhiteFideId "627216"]
[WhiteElo "2225"]
[BlackElo "2247"]
[Result "0-1"]
[Round "11"]
[TimeControl "180+2"]
[Date "2023.03.21"]
[WhiteClock "0:00:01"]
[BlackClock "0:00:13"]

1. e4 {[%clk 0:02:24]}  c5 {[%clk 0:02:32]} 2. Nf3 {[%clk 0:02:18]}  d6 {[%clk 0:02:32]} 3. Bb5+ {[%clk 0:02:17]}  Nd7 {[%clk 0:02:32]} 4. Ba4 {[%clk 0:02:14]}  Nf6 {[%clk 0:02:28]} 5. O-O {[%clk 0:02:14]}  Nxe4 {[%clk 0:02:24]} 6. Re1 {[%clk 0:02:14]}  Nf6 {[%clk 0:02:24]} 7. d4 {[%clk 0:02:11]}  cxd4 {[%clk 0:02:20]} 8. Nxd4 {[%clk 0:02:10]}  e6 {[%clk 0:02:11]} 9. c4 {[%clk 0:01:55]}  Be7 {[%clk 0:02:09]} 10. Nb5 {[%clk 0:01:38]}  O-O {[%clk 0:01:57]} 11. Nxd6 {[%clk 0:01:32]}  Nc5 {[%clk 0:01:55]} 12. Nxc8 {[%clk 0:01:27]}  Qxc8 {[%clk 0:01:42]} 13. Bc2 {[%clk 0:01:23]}  Rd8 {[%clk 0:01:37]} 14. Qe2 {[%clk 0:01:23]}  Qc6 {[%clk 0:01:32]} 15. Nc3 {[%clk 0:01:22]}  Rac8 {[%clk 0:01:29]} 16. b3 {[%clk 0:01:22]}  Nfd7 {[%clk 0:01:15]} 17. Rb1 {[%clk 0:00:47]}  Bf6 {[%clk 0:01:09]} 18. Ne4 {[%clk 0:00:47]}  Nxe4 {[%clk 0:01:04]} 19. Bxe4 {[%clk 0:00:46]}  Qc7 {[%clk 0:01:01]} 20. Be3 {[%clk 0:00:38]}  g6 {[%clk 0:00:52]} 21. g3 {[%clk 0:00:29]}  b6 {[%clk 0:00:49]} 22. Red1 {[%clk 0:00:26]}  Nc5 {[%clk 0:00:47]} 23. Bf3 {[%clk 0:00:22]}  Rxd1+ {[%clk 0:00:46]} 24. Rxd1 {[%clk 0:00:22]}  Rd8 {[%clk 0:00:46]} 25. Kg2 {[%clk 0:00:21]}  Rd7 {[%clk 0:00:40]} 26. Bf4 {[%clk 0:00:17]}  Qd8 {[%clk 0:00:35]} 27. Rxd7 {[%clk 0:00:17]}  Qxd7 {[%clk 0:00:36]} 28. h4 {[%clk 0:00:14]}  h5 {[%clk 0:00:34]} 29. Be3 {[%clk 0:00:11]}  Qd6 {[%clk 0:00:24]} 30. Bf4 {[%clk 0:00:10]}  Qd4 {[%clk 0:00:23]} 31. Bb8 {[%clk 0:00:09]}  a5 {[%clk 0:00:20]} 32. Bc7 {[%clk 0:00:09]}  Nd3 {[%clk 0:00:19]} 33. Bb8 {[%clk 0:00:06]}  Nb4 {[%clk 0:00:16]} 34. Bf4 {[%clk 0:00:04]}  Qb2 {[%clk 0:00:15]} 35. Qxb2 {[%clk 0:00:03]}  Bxb2 {[%clk 0:00:16]} 36. Bc7 {[%clk 0:00:03]}  Bd4 {[%clk 0:00:14]} 37. a3 {[%clk 0:00:03]}  Nc2 {[%clk 0:00:14]} 38. a4 {[%clk 0:00:02]}  Bc5 {[%clk 0:00:14]} 39. Kf1 {[%clk 0:00:01]}  Nd4 {[%clk 0:00:15]} 40. Bd1 {[%clk 0:00:01]}  Kf8 {[%clk 0:00:14]} 41. Ke1 {[%clk 0:00:01]}  Ke7 {[%clk 0:00:14]} 42. Bf4 {[%clk 0:00:01]}  f6 {[%clk 0:00:13]} 43. Be3 {[%clk 0:00:01]}  e5 {[%clk 0:00:13]} 0-1


[Site "https://www.chess.com"]

[Event "Titled Tuesday Blitz March 21 Late 2023"]
[White "Ricaurte Lopez, Juan Carlos"]
[Black "Li, Hui"]
[WhiteFideId "3600327"]
[BlackFideId "15400310"]
[WhiteElo "2209"]
[BlackElo "1967"]
[Result "0-1"]
[Round "11"]
[TimeControl "180+2"]
[Date "2023.03.21"]
[WhiteClock "0:00:01"]
[BlackClock "0:00:06"]

1. e4 {[%clk 0:03:00]}  e5 {[%clk 0:02:59]} 2. d4 {[%clk 0:03:00]}  exd4 {[%clk 0:02:58]} 3. c3 {[%clk 0:03:00]}  dxc3 {[%clk 0:02:55]} 4. Nxc3 {[%clk 0:02:54]}  Nc6 {[%clk 0:02:55]} 5. Bc4 {[%clk 0:02:51]}  d6 {[%clk 0:02:51]} 6. Nf3 {[%clk 0:02:49]}  Be7 {[%clk 0:02:50]} 7. h4 {[%clk 0:02:31]}  Nf6 {[%clk 0:02:48]} 8. h5 {[%clk 0:02:22]}  Bg4 {[%clk 0:02:36]} 9. Qb3 {[%clk 0:02:11]}  O-O {[%clk 0:02:32]} 10. Qxb7 {[%clk 0:02:09]}  Na5 {[%clk 0:02:32]} 11. Qa6 {[%clk 0:02:08]}  Nxc4 {[%clk 0:02:31]} 12. Qxc4 {[%clk 0:02:08]}  Bxh5 {[%clk 0:02:17]} 13. Nd4 {[%clk 0:02:02]}  Bg6 {[%clk 0:02:10]} 14. Bg5 {[%clk 0:01:52]}  h6 {[%clk 0:01:45]} 15. Bh4 {[%clk 0:01:47]}  c5 {[%clk 0:01:22]} 16. Nc6 {[%clk 0:01:38]}  Qd7 {[%clk 0:01:22]} 17. Nxe7+ {[%clk 0:01:34]}  Qxe7 {[%clk 0:01:22]} 18. O-O-O {[%clk 0:01:28]}  Qe6 {[%clk 0:01:21]} 19. Qxe6 {[%clk 0:01:24]}  fxe6 {[%clk 0:01:22]} 20. Rxd6 {[%clk 0:01:21]}  Nxe4 {[%clk 0:01:18]} 21. Rxe6 {[%clk 0:01:14]}  Nxc3 {[%clk 0:01:11]} 22. Rxg6 {[%clk 0:01:10]}  Nxa2+ {[%clk 0:01:08]} 23. Kb1 {[%clk 0:01:08]}  Nb4 {[%clk 0:01:08]} 24. Rd1 {[%clk 0:01:04]}  Kh7 {[%clk 0:01:03]} 25. Rgd6 {[%clk 0:00:49]}  Rf7 {[%clk 0:00:58]} 26. f3 {[%clk 0:00:47]}  Re8 {[%clk 0:00:58]} 27. b3 {[%clk 0:00:42]}  Re2 {[%clk 0:00:57]} 28. R1d2 {[%clk 0:00:41]}  Rxd2 {[%clk 0:00:43]} 29. Rxd2 {[%clk 0:00:42]}  g5 {[%clk 0:00:44]} 30. Bf2 {[%clk 0:00:40]}  Rc7 {[%clk 0:00:40]} 31. Kb2 {[%clk 0:00:38]}  Kg6 {[%clk 0:00:35]} 32. Kc3 {[%clk 0:00:35]}  Rc6 {[%clk 0:00:33]} 33. Kc4 {[%clk 0:00:34]}  Na6 {[%clk 0:00:28]} 34. Ra2 {[%clk 0:00:32]}  Kf5 {[%clk 0:00:20]} 35. Ra5 {[%clk 0:00:32]}  Ke6 {[%clk 0:00:18]} 36. Bxc5 {[%clk 0:00:31]}  Nxc5 {[%clk 0:00:15]} 37. Rxc5 {[%clk 0:00:32]}  Rd6 {[%clk 0:00:15]} 38. Kc3 {[%clk 0:00:28]}  a6 {[%clk 0:00:14]} 39. b4 {[%clk 0:00:23]}  Kf6 {[%clk 0:00:14]} 40. g4 {[%clk 0:00:18]}  Kg6 {[%clk 0:00:13]} 41. Rf5 {[%clk 0:00:17]}  h5 {[%clk 0:00:08]} 42. Re5 {[%clk 0:00:14]}  h4 {[%clk 0:00:08]} 43. Re2 {[%clk 0:00:13]}  Rf6 {[%clk 0:00:08]} 44. Rf2 {[%clk 0:00:13]}  Rd6 {[%clk 0:00:07]} 45. Kc4 {[%clk 0:00:12]}  Kf6 {[%clk 0:00:06]} 46. f4 {[%clk 0:00:12]}  gxf4 {[%clk 0:00:06]} 47. Rxf4+ {[%clk 0:00:12]}  Kg5 {[%clk 0:00:07]} 48. Re4 {[%clk 0:00:11]}  Rh6 {[%clk 0:00:06]} 49. Kd5 {[%clk 0:00:03]}  h3 {[%clk 0:00:04]} 50. Re1 {[%clk 0:00:01]}  h2 {[%clk 0:00:04]} 51. Rh1 {[%clk 0:00:01]}  Kxg4 {[%clk 0:00:04]} 52. Ke4 {[%clk 0:00:01]}  Kg3 {[%clk 0:00:04]} 53. Ke3 {[%clk 0:00:01]}  Kg2 {[%clk 0:00:05]} 54. Rxh2+ {[%clk 0:00:01]}  Kxh2 {[%clk 0:00:06]} 0-1


[Site "https://www.chess.com"]

[Event "Titled Tuesday Blitz March 21 Late 2023"]
[White "Stead, Kerry"]
[Black "Barria Santos, Jose Guilherme"]
[WhiteFideId "3202577"]
[BlackFideId "1939300"]
[WhiteElo "1997"]
[BlackElo "2301"]
[Result "1-0"]
[Round "11"]
[TimeControl "180+2"]
[Date "2023.03.21"]
[WhiteClock "0:01:12"]
[BlackClock "0:00:02"]

1. d4 {[%clk 0:02:59]}  Nf6 {[%clk 0:03:00]} 2. f3 {[%clk 0:02:59]}  g6 {[%clk 0:03:00]} 3. e4 {[%clk 0:02:58]}  d6 {[%clk 0:02:54]} 4. Be3 {[%clk 0:02:58]}  Bg7 {[%clk 0:02:53]} 5. Qd2 {[%clk 0:02:59]}  O-O {[%clk 0:02:50]} 6. a4 {[%clk 0:02:57]}  Re8 {[%clk 0:02:40]} 7. Ne2 {[%clk 0:02:57]}  Nbd7 {[%clk 0:02:33]} 8. Na3 {[%clk 0:02:56]}  c5 {[%clk 0:02:33]} 9. Nc3 {[%clk 0:02:52]}  cxd4 {[%clk 0:02:31]} 10. Bxd4 {[%clk 0:02:52]}  a6 {[%clk 0:02:30]} 11. O-O-O {[%clk 0:02:51]}  Qa5 {[%clk 0:01:30]} 12. Nc4 {[%clk 0:02:40]}  Qb4 {[%clk 0:01:28]} 13. a5 {[%clk 0:02:35]}  Nc5 {[%clk 0:01:24]} 14. Nd5 {[%clk 0:02:26]}  Qxd2+ {[%clk 0:01:24]} 15. Rxd2 {[%clk 0:02:26]}  Nxd5 {[%clk 0:01:19]} 16. Bxg7 {[%clk 0:02:25]}  Kxg7 {[%clk 0:01:18]} 17. exd5 {[%clk 0:02:17]}  b5 {[%clk 0:01:03]} 18. axb6 {[%clk 0:02:16]}  Bb7 {[%clk 0:01:02]} 19. Ne3 {[%clk 0:02:13]}  Rac8 {[%clk 0:01:01]} 20. Kd1 {[%clk 0:02:10]}  Na4 {[%clk 0:00:56]} 21. c3 {[%clk 0:02:02]}  Nxb6 {[%clk 0:00:54]} 22. Be2 {[%clk 0:01:57]}  Rc5 {[%clk 0:00:49]} 23. c4 {[%clk 0:01:54]}  Rec8 {[%clk 0:00:47]} 24. b3 {[%clk 0:01:45]}  Ra5 {[%clk 0:00:38]} 25. Kc2 {[%clk 0:01:42]}  Nxd5 {[%clk 0:00:26]} 26. Nxd5 {[%clk 0:01:36]}  Bxd5 {[%clk 0:00:24]} 27. Kb2 {[%clk 0:01:28]}  Be6 {[%clk 0:00:22]} 28. g4 {[%clk 0:01:23]}  Rb8 {[%clk 0:00:22]} 29. Kc3 {[%clk 0:01:21]}  Rc5 {[%clk 0:00:19]} 30. b4 {[%clk 0:01:18]}  Rc7 {[%clk 0:00:18]} 31. Ra1 {[%clk 0:01:17]}  Rbc8 {[%clk 0:00:17]} 32. Rd4 {[%clk 0:01:15]}  d5 {[%clk 0:00:17]} 33. c5 {[%clk 0:01:15]}  Ra7 {[%clk 0:00:15]} 34. Rxa6 {[%clk 0:01:15]}  Rxa6 {[%clk 0:00:15]} 35. Bxa6 {[%clk 0:01:16]}  Ra8 {[%clk 0:00:15]} 36. b5 {[%clk 0:01:16]}  Bc8 {[%clk 0:00:14]} 37. Bxc8 {[%clk 0:01:16]}  Rxc8 {[%clk 0:00:15]} 38. Kb4 {[%clk 0:01:16]}  e6 {[%clk 0:00:15]} 39. c6 {[%clk 0:01:16]}  Kf8 {[%clk 0:00:14]} 40. Kc5 {[%clk 0:01:16]}  Ke7 {[%clk 0:00:15]} 41. b6 {[%clk 0:01:16]}  Ra8 {[%clk 0:00:11]} 42. b7 {[%clk 0:01:16]}  Ra1 {[%clk 0:00:02]} 43. b8=Q {[%clk 0:01:13]}  Rc1+ {[%clk 0:00:02]} 44. Kb6 {[%clk 0:01:12]} 1-0


[Site "https://www.chess.com"]